bitfinex-derivatives/quotes_ETHF0:USTF0_20220106
["timestamp","ask_amount","ask_price","bid_price","bid_amount"]
[1641482336542,2.827677,3372.5,3372.0,0.74675448]
[1641482337643,4.832467,3372.5,3371.9,0.384472]
[1641482338743,4.832467,3372.5,3371.9,0.781654]
[1641482339142,4.832467,3372.5,3371.9,0.397182]
[1641482339746,4.832467,3372.5,3371.9,0.781654]
[1641482340343,4.832467,3372.5,3372.2,1.88641465]
[1641482340544,4.832467,3372.5,3372.4,1.49256559]
[1641482341643,4.372485,3372.5,3372.4,1.63272959]
[1641482341843,4.061091,3372.5,3372.4,1.63272959]
[1641482342043,4.00958,3372.5,3372.4,1.63272959]
[1641482342445,4.00958,3372.5,3372.4,0.537346]
[1641482342845,4.469562,3372.5,3372.2,1.49256559]
[1641482343247,4.469562,3372.5,3372.0,1.88641465]
[1641482343447,0.051511,3372.4,3371.9,3.14403008]
[1641482343647,0.051511,3372.4,3372.1,2.51521953]
[1641482343845,0.459982,3372.3,3372.1,2.51521953]
[1641482344245,0.051511,3372.2,3372.1,2.51521953]
[1641482344849,0.051511,3372.2,3372.1,1.50847639]
[1641482346151,4.00958,3372.5,3372.1,1.64864039]
[1641482346350,0.95412271,3372.9,3372.4,1.5]
[1641482346649,0.95412271,3372.9,3372.5,0.397182]
[1641482347551,0.95412271,3372.9,3372.8,1.5]
[1641482347748,2.00479,3374.6,3372.8,6.046926]
[1641482348150,0.95818023,3373.7,3372.9,1.47352979]
[1641482348349,0.95818023,3373.7,3373.0,0.781654]
[1641482349350,1.68412609,3374.5,3373.5,1.5]
[1641482349553,0.47122717,3374.5,3373.7,1.5]
[1641482349752,0.47122717,3374.5,3374.4,2.00479]
[1641482349958,2.717e-05,3374.5,3374.4,2.812854]
[1641482350152,2.717e-05,3374.5,3374.4,3.210036]
[1641482350352,2.717e-05,3374.5,3374.4,3.594508]
[1641482350855,1.68412609,3375.1,3374.4,5.094508]
[1641482351055,1.68412609,3375.1,3375.0,1.5]
[1641482351254,2.35308225,3375.3,3375.0,0.537346]
[1641482351450,0.8293,3376.4,3375.0,0.537346]
[1641482351652,0.8293,3376.4,3375.8,2.00479]
[1641482351850,0.362905,3376.3,3375.8,2.00479]
[1641482352052,0.362905,3376.3,3375.5,2.00479]
[1641482352652,1.5,3376.2,3375.5,2.00479]
[1641482353058,0.051511,3376.1,3375.5,2.00479]
[1641482353251,1.5,3375.7,3375.1,0.8292]
[1641482353453,12.731511,3375.6,3375.1,0.8292]
[1641482353651,2.00479,3375.2,3375.1,0.8292]
[1641482353851,15.456166,3375.2,3375.1,0.8292]
[1641482354052,15.507677,3375.2,3374.4,2.00479]
[1641482354451,15.507677,3375.2,3372.6,33.7103]
[1641482354652,1.5,3374.7,3372.6,33.7103]
[1641482354854,2.119,3374.7,3372.1,9.5]
[1641482355055,12.68,3374.6,3372.2,31.5974]
[1641482355254,1.5,3373.5,3372.2,31.5974]
[1641482355654,2.00479,3373.2,3372.5,2.00479]
[1641482355954,0.362905,3373.1,3372.5,2.00479]
[1641482356654,1.48226544,3372.7,3372.6,0.397182]
[1641482356854,1.48226544,3372.7,3372.6,0.537346]
[1641482357055,2.00479,3373.6,3372.6,0.537346]
[1641482357657,2.00479,3373.6,3373.1,2.00479]
[1641482357658,1.4820194,3373.3,3373.1,2.00479]
[1641482357859,1.4820194,3373.3,3373.1,2.144954]
[1641482358258,2.00479,3373.6,3373.1,2.00479]
[1641482358458,2.316184,3373.6,3373.1,2.00479]
[1641482358858,1.5,3373.5,3373.1,2.00479]
[1641482359058,2.316184,3373.6,3372.5,2.00479]
[1641482359059,0.051511,3373.4,3372.5,2.00479]
[1641482359257,1.5,3372.6,3371.4,32.0835]
[1641482359459,1.22614843,3373.4,3370.8,30.4936]
[1641482359658,1.48266981,3371.8,3371.6,2.00479]
[1641482359858,0.459982,3371.7,3371.6,2.00479]
[1641482360264,0.511493,3371.7,3371.6,2.00479]
[1641482360459,2.00479,3372.4,3371.6,2.144954]
[1641482360663,0.311394,3372.3,3371.6,2.00479]
[1641482360863,1.48263904,3371.9,3371.6,2.00479]
[1641482361063,0.459982,3371.8,3371.6,2.00479]
[1641482361461,0.511493,3371.8,3371.6,2.00479]
[1641482362868,0.311394,3372.3,3371.6,3.644954]
[1641482363065,0.311394,3372.3,3371.8,1.5]
[1641482363265,0.311394,3372.3,3371.9,0.397182]
[1641482363465,0.311394,3372.4,3371.9,0.397182]
[1641482363667,1.48257969,3372.0,3371.6,2.00479]
[1641482363866,0.362905,3372.4,3371.6,2.00479]
[1641482363867,0.311394,3372.4,3371.6,2.00479]
[1641482364167,0.051511,3372.3,3371.6,2.00479]
[1641482365268,0.051511,3372.3,3371.7,0.781654]
[1641482366570,0.051511,3372.3,3371.7,0.397182]
[1641482366768,0.051511,3372.3,3371.6,2.00479]
[1641482367971,12.731511,3372.3,3371.6,2.00479]
[1641482368169,0.051511,3372.3,3371.6,2.00479]
[1641482369471,1.48266542,3371.8,3371.6,2.00479]
[1641482369672,0.822887,3371.7,3371.6,2.00479]
[1641482370774,0.822887,3371.7,3371.6,3.48370965]
[1641482371077,2.30577008,3371.7,3371.6,1.47891965]
[1641482371374,12.68,3371.6,3371.1,2.4647157]
[1641482371673,1.513196,3371.5,3371.1,2.4627157]
[1641482371875,1.513196,3371.5,3370.9,3.14403008]
[1641482371876,1.513196,3371.5,3371.4,1.50881757]
[1641482372072,1.973178,3371.5,3370.9,2.4627157]
[1641482372274,1.973178,3371.5,3370.7,3.14403008]
[1641482372473,0.473178,3371.5,3370.7,2.71833008]
[1641482372673,1.5,3370.9,3367.7,5.467]
[1641482372873,1.48372575,3369.5,3367.8,1.5]
[1641482373179,0.771376,3369.5,3367.8,1.5]
[1641482373374,0.771376,3369.5,3367.7,5.467]
[1641482373774,0.771376,3369.5,3367.4,1.5]
[1641482373775,15.456166,3369.5,3368.5,1.66423296]
[1641482374076,15.456166,3369.5,3369.3,2.26766365]
[1641482374275,15.2462304,3369.4,3369.3,2.26766365]
[1641482374476,14.1640164,3369.4,3369.3,2.26766365]
[1641482374678,15.2396234,3369.4,3369.3,1.67586365]
[1641482374976,13.755607,3369.4,3368.5,1.66423296]
[1641482375377,13.755607,3369.4,3368.2,2.00479]
[1641482375578,14.22721505,3369.4,3368.2,2.00479]
[1641482375782,12.68,3368.8,3368.2,2.00479]
[1641482376078,0.311394,3368.7,3368.2,2.00479]
[1641482376479,1.811394,3368.7,3367.9,2.00479]
[1641482376679,1.5,3368.3,3367.9,2.00479]
[1641482377080,0.015425,3368.2,3367.9,2.00479]
[1641482377279,0.459982,3368.1,3367.9,2.00479]
[1641482377479,1.5,3368.0,3367.2,3.77526159]
[1641482377681,1.5,3367.7,3367.2,3.77526159]
[1641482377881,12.68,3367.5,3367.2,3.77526159]
[1641482378081,0.459982,3367.4,3367.2,3.77526159]
[1641482378383,14.18,3367.3,3367.2,3.77526159]
[1641482378782,14.224082,3367.3,3367.0,3.14702326]
[1641482378980,1.5,3367.1,3367.0,3.14702326]
[1641482379280,16.79812607,3367.1,3367.0,3.14702326]
[1641482379479,13.812893,3367.1,3367.0,3.14702326]
[1641482379879,17.30292489,3367.1,3367.0,3.14702326]
[1641482380081,3.49003189,3367.1,3367.0,3.28718726]
[1641482380280,2.00479,3367.1,3367.0,3.14702326]
[1641482380885,2.464772,3367.1,3367.0,3.14702326]
[1641482381080,2.464772,3367.1,3364.2,5.467]
[1641482381282,1.5,3366.4,3364.3,30.8424]
[1641482381581,1.48550224,3365.7,3364.3,30.8424]
[1641482381782,1.94548424,3365.7,3363.6,12.68]
[1641482382082,1.48550224,3365.7,3364.2,1.5]
[1641482382381,12.68,3366.1,3364.2,1.5]
[1641482382582,12.68,3366.1,3364.6,1.5]
[1641482383282,2.00479,3366.2,3364.6,1.5]
[1641482383485,2.00479,3366.2,3365.6,2.389262]
[1641482383689,1.48536985,3365.7,3365.6,2.389262]
[1641482383884,2.00479,3366.2,3365.6,2.529426]
[1641482384082,1.5,3368.2,3365.8,1.5]
[1641482384282,1.48503677,3366.4,3365.8,1.5]
[1641482384582,1.5,3368.3,3365.9,0.397182]
[1641482384782,1.5,3367.7,3365.9,0.397182]
[1641482385382,4.0,3368.4,3365.9,0.397182]
[1641482385584,14.68479,3367.1,3365.9,0.397182]
[1641482385885,2.00479,3367.1,3365.9,0.397182]
[1641482386190,2.00479,3367.1,3365.6,2.389262]
[1641482386191,1.48524851,3366.0,3365.6,2.389262]
[1641482386482,2.00479,3367.1,3365.6,2.389262]
[1641482386483,0.311394,3365.9,3365.6,2.00479]
[1641482386682,0.459982,3365.8,3365.6,2.00479]
[1641482386882,12.68,3367.0,3365.6,2.00479]
[1641482387084,2.00479,3367.1,3365.7,0.140164]
[1641482387885,14.68479,3367.1,3366.0,1.5]
[1641482388083,1.48497502,3366.6,3365.8,1.5]
[1641482388283,14.68479,3367.1,3365.9,0.397182]
[1641482388482,2.00479,3367.1,3366.0,1.5]
[1641482388685,2.00479,3367.1,3365.7,1.5]
[1641482388885,14.68479,3367.1,3365.7,1.5]
[1641482389082,14.68479,3367.1,3365.6,4.00958]
[1641482389483,1.48510073,3366.3,3365.6,4.00958]
[1641482389684,1.48510073,3366.3,3365.7,0.781654]
[1641482389887,0.311394,3366.2,3366.0,2.00479]
[1641482390084,4.00958,3367.1,3366.1,0.397182]
[1641482390288,2.00479,3367.1,3366.1,0.397182]
[1641482390687,1.5,3366.6,3366.0,2.00479]
[1641482390889,16.18479,3367.1,3364.1,1.5]
[1641482391394,1.48544928,3365.5,3364.1,1.5]
[1641482391589,1.5,3366.8,3364.5,1.5]
[1641482391787,1.5,3366.8,3365.5,2.00479]
[1641482391788,12.68,3366.2,3365.5,2.00479]
[1641482391988,0.311394,3366.1,3365.5,2.00479]
[1641482392188,0.311394,3366.1,3365.6,8.0]
[1641482392386,0.311394,3366.1,3365.5,2.00479]
[1641482392886,1.5,3366.0,3365.2,2.00479]
[1641482393086,1.48588631,3365.3,3365.2,2.00479]
[1641482393286,1.94586831,3365.3,3365.2,2.00479]
[1641482393788,0.459982,3365.3,3365.2,2.00479]
[1641482393988,0.771376,3365.3,3365.2,2.00479]
[1641482394390,0.771376,3365.3,3364.7,2.00479]
[1641482394588,1.5,3365.2,3362.7,33.2383]
[1641482394887,1.5,3365.2,3362.8,31.2984]
[1641482394888,1.4861248,3364.0,3362.8,31.2984]
[1641482395291,6.00479,3365.8,3363.4,1.5]
[1641482395292,12.68,3365.2,3363.4,1.5]
[1641482395490,2.00479,3365.8,3364.6,1.5]
[1641482395689,2.00479,3365.8,3364.5,1.5]
[1641482395889,4.00958,3365.8,3364.7,2.00479]
[1641482396090,1.48557727,3365.2,3364.7,2.00479]
[1641482396291,1.48557727,3365.2,3364.8,0.781654]
[1641482396494,1.48557727,3365.2,3364.8,2.281654]
[1641482396792,1.48557727,3365.2,3364.8,0.781654]
[1641482397792,0.311394,3365.3,3364.8,0.781654]
[1641482398291,0.311394,3365.3,3364.7,2.00479]
[1641482399195,0.311394,3365.3,3364.8,0.384472]
[1641482399393,1.48560817,3365.2,3364.7,2.00479]
[1641482399592,1.48584215,3364.9,3364.7,2.00479]
[1641482399792,0.459982,3364.8,3364.7,2.00479]
[1641482399992,2.00479,3365.2,3364.4,2.00479]
[1641482399993,12.68,3365.1,3364.4,2.00479]
[1641482400195,14.18,3365.1,3364.4,2.00479]
[1641482400394,12.68,3365.1,3364.4,2.00479]
[1641482400592,1.48607621,3364.5,3363.4,31.9502]
[1641482400793,1.48607621,3364.5,3363.2,0.619]
[1641482400992,12.68,3365.1,3363.3,1.5]
[1641482401193,12.68,3365.1,3362.8,1.5]
[1641482401594,1.48607621,3364.1,3362.8,1.5]
[1641482401795,1.48607621,3364.1,3363.6,2.00479]
[1641482401993,0.311394,3364.0,3363.6,2.00479]
[1641482402995,1.4862529,3363.7,3363.6,2.00479]
[1641482403195,1.9462349,3363.7,3363.6,2.00479]
[1641482403496,1.4862529,3363.7,3363.6,2.00479]
[1641482403695,1.48609388,3364.1,3363.6,2.00479]
[1641482403898,2.00479,3364.4,3363.8,1.5]
[1641482404095,2.00479,3364.4,3363.9,1.5]
[1641482404299,2.00479,3364.4,3363.9,1.897182]
[1641482404595,2.00479,3364.4,3364.0,0.384472]
[1641482404796,2.00479,3364.4,3363.6,2.00479]
[1641482405194,2.00479,3364.4,3363.7,0.397182]
[1641482406596,2.00479,3364.4,3363.8,0.384472]
[1641482406804,1.5,3366.3,3363.9,0.397182]
[1641482406997,0.4465,3366.5,3364.3,1.5]
[1641482407198,1.9391,3366.8,3364.3,1.5]
[1641482407497,1.5,3366.3,3364.3,1.5]
[1641482407705,0.4546,3367.8,3364.8,1.5]
[1641482407899,0.4546,3367.8,3365.6,2.00479]
[1641482407900,2.00479,3366.4,3365.6,2.00479]
[1641482408099,2.00479,3366.4,3365.7,0.397182]
[1641482408299,2.00479,3366.7,3365.7,0.397182]
[1641482408300,2.00479,3366.7,3366.3,1.5]
[1641482408498,2.00479,3366.7,3366.2,0.397182]
[1641482408699,2.00479,3366.7,3366.1,0.384472]
[1641482409099,2.00479,3366.7,3366.2,0.397182]
[1641482411902,2.00479,3366.3,3365.6,2.00479]
[1641482412100,2.00479,3366.3,3365.7,0.781654]
[1641482412503,2.00479,3366.3,3365.0,2.00479]
[1641482412702,1.48551548,3365.8,3365.0,2.00479]
[1641482412903,2.00479,3366.3,3365.1,0.397182]
[1641482413504,2.00479,3366.3,3365.2,1.5]
[1641482413704,1.48540515,3365.6,3365.2,1.5]
[1641482413905,2.00479,3366.3,3365.5,2.00479]
[1641482414210,0.311394,3366.2,3365.6,0.384472]
[1641482414408,2.00479,3366.7,3365.6,0.781654]
[1641482414606,1.48525513,3366.0,3365.6,0.781654]
[1641482414805,2.00479,3366.7,3365.6,0.781654]
[1641482415005,2.00479,3366.7,3365.8,1.5]
[1641482415205,2.00479,3366.7,3365.6,0.384472]
[1641482415408,2.00479,3366.7,3365.6,1.884472]
[1641482415605,2.00479,3366.7,3365.8,1.5]
[1641482416004,2.00479,3366.7,3366.1,2.00479]
[1641482416206,2.00479,3367.2,3366.2,0.397182]
[1641482416505,0.91858466,3368.1,3366.5,1.5]
[1641482416907,0.91858466,3368.1,3366.8,1.5]
[1641482417106,0.91858466,3368.1,3367.5,1.5]
[1641482417304,0.91858466,3368.1,3367.6,0.781654]
[1641482417704,2.40288742,3368.1,3367.6,0.781654]
[1641482417906,0.311394,3368.0,3367.8,2.00479]
[1641482418105,0.771376,3368.0,3367.8,2.00479]
[1641482418706,0.47220046,3368.5,3367.9,0.140164]
[1641482418907,0.47220046,3368.5,3368.0,0.397182]
[1641482419308,0.91858466,3368.6,3368.0,0.397182]
[1641482419508,0.91858466,3368.6,3367.8,2.00479]
[1641482419710,1.5,3368.8,3367.8,2.00479]
[1641482419909,1.5,3368.8,3368.2,2.00479]
[1641482420110,0.311394,3368.7,3368.2,2.00479]
[1641482420307,0.311394,3368.7,3366.6,33.4678]
[1641482420308,1.5,3368.5,3366.6,33.4678]
[1641482420510,1.5,3368.3,3366.4,33.6307]
[1641482420710,1.5,3368.3,3366.0,31.0989]
[1641482421008,12.991394,3368.7,3366.0,31.0989]
[1641482421209,1.5,3367.8,3365.8,0.97419542]
[1641482421411,1.5,3367.6,3365.8,0.97419542]
[1641482421608,1.5,3368.0,3365.8,0.97419542]
[1641482421809,1.5,3368.2,3365.8,0.97419542]
[1641482422008,12.68,3367.8,3367.1,2.00479]
[1641482422210,0.311394,3367.7,3367.1,2.00479]
[1641482422408,0.311394,3367.7,3366.8,2.00479]
[1641482423309,1.48489344,3366.9,3366.8,2.00479]
[1641482423509,12.68,3367.8,3366.8,2.144954]
[1641482423708,12.68,3367.8,3366.8,2.00479]
[1641482423909,2.00479,3367.9,3366.8,4.00958]
[1641482424210,5.467,3372.5,3366.8,4.00958]
[1641482424211,0.91858466,3368.3,3366.8,4.00958]
[1641482425212,0.91858466,3368.3,3366.8,4.62858]
[1641482425410,13.82823083,3368.6,3366.8,4.62858]
[1641482425411,14.18,3368.6,3366.8,4.62858]
[1641482425610,12.68,3368.6,3366.8,4.00958]
[1641482426012,2.00479,3368.9,3367.8,2.00479]
[1641482426411,1.48409128,3368.6,3367.8,2.00479]
[1641482426613,1.48409128,3368.6,3367.9,0.781654]
[1641482427012,2.92337466,3368.9,3367.9,0.781654]
[1641482427611,1.48408027,3368.6,3367.9,0.781654]
[1641482427812,2.92337466,3368.9,3367.9,0.781654]
[1641482428011,0.91858466,3368.9,3368.5,2.00479]
[1641482428213,0.311394,3368.8,3368.5,2.00479]
[1641482428413,0.459982,3368.7,3368.5,2.00479]
[1641482428614,2.00479,3369.3,3368.6,0.140164]
[1641482428815,1.48402521,3368.7,3368.6,0.140164]
[1641482429315,1.48402521,3368.7,3368.6,0.537346]
[1641482429716,0.91858466,3369.5,3368.6,2.037346]
[1641482429920,1.77757856,3369.9,3369.4,4.00958]
[1641482429921,8.466e-05,3369.6,3369.4,4.00958]
[1641482430117,1.14823083,3369.9,3369.5,0.537346]
[1641482430516,2.00722472,3370.1,3369.5,0.537346]
[1641482430916,2.31861872,3370.1,3369.5,0.921818]
[1641482431316,2.00722472,3370.1,3369.5,0.921818]
[1641482431719,4.03860716,3373.1,3369.5,0.921818]
[1641482431720,2.35169397,3371.3,3369.5,0.921818]
[1641482431927,2.35169397,3371.3,3370.6,2.00479]
[1641482432125,1.48306562,3371.2,3370.6,2.00479]
[1641482432527,15.03169397,3371.3,3370.6,2.00479]
[1641482432726,2.35169397,3371.3,3370.6,2.00479]
[1641482432929,0.311394,3371.2,3370.6,2.00479]
[1641482433326,0.311394,3371.2,3370.2,2.00479]
[1641482433927,1.483224,3370.8,3370.2,2.00479]
[1641482434127,1.483224,3370.8,3370.2,2.401972]
[1641482434527,2.00479,3371.0,3370.3,0.384472]
[1641482434727,0.311394,3371.2,3370.4,0.397182]
[1641482434928,1.5,3372.9,3370.4,0.397182]
[1641482435130,1.4828457,3371.7,3370.4,0.397182]
[1641482435327,30.737,3372.9,3370.4,0.397182]
[1641482435527,1.48271158,3372.0,3370.4,0.397182]
[1641482435929,2.00479,3372.3,3371.6,2.00479]
[1641482436129,0.311394,3372.2,3371.6,2.00479]
[1641482436330,12.991394,3372.2,3371.6,2.00479]
[1641482436730,12.991394,3372.2,3371.2,2.00479]
[1641482436933,1.5,3371.3,3369.6,0.619]
[1641482437134,1.5,3371.0,3369.4,33.435]
[1641482437334,1.5,3371.7,3362.1,0.82576559]
[1641482437534,1.5,3371.7,3368.1,32.2096]
[1641482437836,1.5,3371.7,3368.5,8.0]
[1641482438035,2.00479,3370.9,3370.1,2.00479]
[1641482438234,2.00479,3371.2,3370.2,0.781654]
[1641482438635,1.4831272,3371.0,3370.2,0.781654]
[1641482439035,2.00479,3371.2,3370.2,0.781654]
[1641482439435,2.00479,3371.2,3370.1,1.55341971]
[1641482439834,3.48784682,3371.2,3370.1,1.55341971]
[1641482440035,2.00479,3371.2,3370.7,2.00479]
[1641482440235,2.786444,3371.2,3370.7,2.00479]
[1641482442134,1.5,3370.8,3370.1,1.55341971]
[1641482442334,1.5,3370.6,3370.1,1.55341971]
[1641482442534,0.384472,3370.5,3369.2,32.7733]
[1641482442734,0.384472,3370.5,3367.8,8.0]
[1641482442935,0.384472,3370.5,3368.0,1.5]
[1641482443335,0.384472,3370.5,3367.9,66.1412]
[1641482443536,1.5,3369.5,3367.1,5.467]
[1641482443736,1.5,3369.5,3367.2,30.5638]
[1641482443938,2.00479,3368.8,3368.0,2.00479]
[1641482444137,0.397182,3368.7,3368.1,0.073079]
[1641482444337,13.077182,3368.7,3368.1,0.073079]
[1641482444536,0.384472,3368.6,3368.0,2.00479]
[1641482444737,0.397182,3368.5,3368.0,2.00479]
[1641482445137,0.397182,3368.5,3366.8,32.7378]
[1641482445337,0.397182,3368.5,3366.1,31.7962]
[1641482445741,0.397182,3368.5,3367.0,1.5]
[1641482445940,2.00479,3368.3,3367.6,2.00479]
[1641482446139,2.00479,3368.8,3367.7,0.470261]
[1641482446339,1.48432038,3368.6,3367.7,0.470261]
[1641482446940,2.00479,3368.8,3367.7,0.470261]
[1641482448140,2.00479,3368.8,3368.2,2.00479]
[1641482448540,2.00479,3368.8,3368.3,0.397182]
[1641482448841,2.00479,3368.8,3368.4,0.073079]
[1641482449642,0.397182,3368.7,3368.2,2.00479]
[1641482450948,2.00479,3369.3,3368.3,0.470261]
[1641482452043,12.68,3369.2,3368.6,2.00479]
[1641482452243,13.461654,3369.2,3368.6,2.00479]
[1641482452444,1.5,3369.0,3366.0,8.0]
[1641482452843,1.5,3369.0,3366.2,32.6958]
[1641482453245,1.5,3369.0,3366.2,34.1958]
[1641482453443,1.5,3368.8,3366.2,34.1958]
[1641482453644,1.5,3368.8,3366.2,32.6958]
[1641482454045,2.00479,3368.1,3367.3,2.00479]
[1641482454244,0.397182,3368.0,3367.4,0.073079]
[1641482454844,1.48449666,3367.9,3367.4,0.073079]
[1641482455044,0.397182,3367.8,3367.4,0.073079]
[1641482455245,0.397182,3367.8,3367.3,2.00479]
[1641482455648,0.397182,3367.8,3362.4,15.50948854]
[1641482455845,0.397182,3367.8,3365.0,1.5]
[1641482456046,2.00479,3367.0,3366.2,2.00479]
[1641482456247,0.397182,3366.9,3366.3,0.073079]
[1641482456447,0.397182,3366.9,3366.3,0.470261]
[1641482458447,12.68,3368.6,3366.8,1.5]
[1641482458647,1.48434241,3368.3,3366.4,1.48434241]
[1641482458850,1.48434241,3368.3,3366.8,1.5]
[1641482459148,1.5,3369.5,3366.8,1.5]
[1641482459847,1.5,3369.5,3366.3,12.073079]
[1641482459848,1.5,3369.5,3367.8,1.5]
[1641482460048,2.00479,3368.9,3368.1,2.00479]
[1641482460249,0.781654,3368.8,3368.1,2.00479]
[1641482460649,0.781654,3368.8,3368.1,2.401972]
[1641482460850,0.781654,3368.8,3368.2,0.073079]
[1641482462852,1.17220803,3368.5,3368.2,0.74818102]
[1641482463051,0.93848745,3368.3,3368.2,0.74818102]
[1641482463854,0.93848745,3368.3,3368.2,1.28552702]
[1641482464254,0.47199121,3368.7,3368.2,1.28552702]
[1641482464453,9.121e-05,3368.7,3368.2,1.28552702]
[1641482464653,1.40587715,3368.8,3368.2,1.28552702]
[1641482465252,3.12822339,3368.8,3368.2,0.537346]
[1641482465454,1.40587715,3368.5,3368.2,0.537346]
[1641482465852,2.29646165,3369.0,3368.2,2.037346]
[1641482466054,2.29646165,3369.0,3368.9,2.00479]
[1641482466255,2.29646165,3369.0,3368.9,2.144954]
[1641482466855,3.15763477,3369.5,3368.9,3.718033]
[1641482467062,2.40496533,3369.7,3369.4,1.5]
[1641482467255,2.87057707,3370.0,3369.6,1.5]
[1641482467454,3.477e-05,3370.2,3369.9,1.5]
[1641482467653,3.477e-05,3370.2,3369.7,0.397182]
[1641482467856,3.477e-05,3370.2,3369.3,8.0]
[1641482468055,0.62932162,3370.4,3370.1,2.00479]
[1641482468254,0.62932162,3370.4,3370.2,0.537346]
[1641482468555,14.18,3371.6,3370.2,0.537346]
[1641482468753,12.68,3371.6,3370.2,0.537346]
[1641482469259,3.44469248,3371.8,3370.2,0.537346]
[1641482469454,3.44469248,3371.8,3370.6,1.5]
[1641482469657,3.44469248,3371.8,3370.1,14.68479]
[1641482469855,3.44469248,3371.8,3370.9,1.5]
[1641482470156,0.62932162,3371.9,3371.2,2.00479]
[1641482470355,0.62932162,3371.9,3371.3,0.470261]
[1641482470757,4.6852077,3372.0,3371.8,1.5]
[1641482470957,1.48210067,3373.4,3371.9,1.3124169]
[1641482471155,1.48210067,3373.4,3371.4,22.16210067]
[1641482471657,1.82350569,3373.0,3371.4,22.16210067]
[1641482471857,3.61064593,3372.9,3372.2,1.5]
[1641482472056,2.00479,3372.8,3372.3,0.397182]
[1641482472255,2.00479,3372.8,3372.4,0.073079]
[1641482472659,2.00479,3372.8,3372.5,0.397182]
[1641482472858,2.00479,3372.8,3372.6,0.140164]
[1641482473060,2.00479,3372.8,3372.6,1.72465776]
[1641482473258,2.00479,3372.8,3372.6,0.397182]
[1641482473659,2.00479,3372.8,3372.0,2.00479]
[1641482473860,12.68,3372.7,3372.0,2.00479]
[1641482474061,0.397182,3372.6,3372.0,2.00479]
[1641482474362,1.80440083,3372.5,3372.0,2.077869]
[1641482474561,1.80440083,3372.5,3372.0,2.475051]
[1641482475761,1.80440083,3372.2,3372.0,2.475051]
[1641482475961,1.80440083,3372.2,3372.1,1.4056676]
[1641482476358,1.80440083,3372.2,3372.1,2.9056676]
[1641482476560,1.80440083,3372.2,3372.1,1.4056676]
[1641482477162,1.19914785,3372.3,3372.1,0.140164]
[1641482477761,1.19914785,3372.3,3372.2,0.397182]
[1641482478361,4.785e-05,3372.3,3372.2,0.397182]
[1641482479565,1.43897742,3372.5,3372.2,0.397182]
[1641482479766,4.20640193,3373.0,3372.4,12.68]
[1641482479963,1.43715466,3372.7,3372.5,13.077182]
[1641482480164,1.80440083,3373.0,3372.6,3.644954]
[1641482480364,1.80440083,3373.0,3372.8,1.5]
[1641482480963,1.80440083,3373.0,3372.9,0.537346]
[1641482481265,1.80440083,3373.2,3372.9,0.537346]
[1641482481463,0.459982,3373.1,3372.6,2.00479]
[1641482481863,0.397182,3373.0,3372.4,0.75490508]
[1641482482265,2.00479,3372.5,3372.4,0.75490508]
[1641482482463,2.861954,3372.5,3372.4,0.75490508]
[1641482482671,2.861954,3372.5,3372.2,0.75490508]
[1641482482863,5.84443698,3372.5,3372.2,0.75490508]
[1641482483064,4.34443698,3372.5,3372.2,0.75490508]
[1641482483563,0.384472,3372.4,3372.2,0.75490508]
[1641482483764,0.857164,3372.3,3372.2,0.75490508]
[1641482484064,0.857164,3372.3,3371.3,2.75969508]
[1641482484266,0.857164,3372.3,3371.3,4.76448508]
[1641482484865,0.459982,3372.3,3371.3,4.76448508]
[1641482485063,2.4020011,3372.4,3371.3,4.76448508]
[1641482485266,2.4020011,3372.4,3371.3,6.26448508]
[1641482485464,0.95762758,3371.7,3371.6,0.75490508]
[1641482485664,0.95762758,3371.7,3371.6,1.36533008]
[1641482486265,0.95762758,3371.7,3371.6,0.610425]
[1641482486464,0.467223,3372.4,3371.6,2.110425]
[1641482486664,0.95840778,3372.2,3371.6,2.110425]
[1641482487262,0.95840778,3372.2,3371.6,14.790425]
[1641482487465,0.95840778,3372.2,3371.8,1.4819579]
[1641482487763,0.467223,3372.4,3371.9,0.397182]
[1641482487963,0.384472,3372.5,3371.7,0.45229118]
[1641482488163,0.384472,3372.5,3372.0,2.00479]
[1641482488363,0.397182,3372.4,3372.0,2.00479]
[1641482489565,1.66329768,3372.3,3372.0,2.7591275]
[1641482489765,0.459982,3372.2,3372.0,2.7591275]
[1641482489966,0.397182,3372.2,3372.1,0.140164]
[1641482490265,0.397182,3372.2,3372.0,2.7591275]
[1641482490464,0.459982,3372.1,3372.0,0.7543375]
[1641482490665,0.927205,3372.1,3372.0,0.7543375]
[1641482491066,15.089888,3372.1,3372.0,0.7543375]
[1641482491266,2.409888,3372.1,3372.0,0.7543375]
[1641482491665,15.089888,3372.1,3371.3,3.51346501]
[1641482491867,0.397182,3372.0,3371.3,3.51346501]
[1641482492067,1.897182,3372.0,3371.3,3.51346501]
[1641482492268,2.00479,3371.7,3371.3,1.50867501]
[1641482492470,0.781654,3371.6,3370.9,2.00479]
[1641482493470,1.66136539,3371.5,3371.0,0.45635668]
[1641482493670,0.397182,3371.4,3371.0,0.45635668]
[1641482495273,12.68,3371.0,3370.4,1.50867501]
[1641482495581,0.781654,3370.9,3370.2,1.50867501]
[1641482495776,0.781654,3370.9,3370.0,4.51772812]
[1641482495974,1.5,3370.1,3369.7,2.51501203]
[1641482496175,2.00479,3369.8,3369.7,2.51501203]
[1641482496375,2.464772,3369.8,3369.7,2.51501203]
[1641482496576,3.94844932,3369.8,3369.7,2.51501203]
[1641482496876,4.34563132,3369.8,3369.7,2.51501203]
[1641482497076,4.34563132,3369.8,3368.9,2.00479]
[1641482498578,1.48378299,3369.5,3368.9,2.00479]
[1641482498876,15.541954,3369.8,3368.9,2.00479]